fUST/lending_fUST_20241111
["ID","MTS","AMOUNT","RATE_DAILY","PERIOD"]
[341950128,1731319851436,-270.0,0.00027,2]
[341950130,1731319851445,-1435.79016172,0.00027023,2]
[341950132,1731319851454,-177.32727502,0.00027122,2]
[341950134,1731319851464,-500.0,0.00027122,2]
[341950136,1731319851473,-417.06023694,0.00027122,2]
[341950138,1731319851483,-500.0,0.00027122,2]
[341950140,1731319851492,-530.68116721,0.00027122,2]
[341950142,1731319851502,-351.98692826,0.00027122,2]
[341950144,1731319851511,-500.0,0.00027122,2]
[341950146,1731319851520,-500.0,0.00027122,2]
[341950148,1731319851530,-500.0,0.00027122,2]
[341950150,1731319851539,-419.56189662,0.00027122,2]
[341950152,1731319851548,-501.77515185,0.00027122,2]
[341950154,1731319851558,-318.31313473,0.00027123,2]
[341950156,1731319851567,-500.0,0.00027123,2]
[341950158,1731319851576,-500.0,0.00027123,2]
[341950160,1731319851585,-950.68,0.00027123,2]
[341950162,1731319851595,-500.0,0.00027123,2]
[341950164,1731319851605,-500.0,0.00027123,2]
[341950166,1731319851614,-500.0,0.00027123,2]
[341950167,1731319851623,-515.99,0.00027123,2]
[341950168,1731319851635,-907.36,0.00027123,2]
[341950169,1731319851646,-500.0,0.00027123,2]
[341950170,1731319851660,-729.05,0.00027123,2]
[341950171,1731319851669,-500.0,0.00027123,2]
[341950172,1731319851678,-500.0,0.00027123,2]
[341950173,1731319851687,-538.66,0.00027123,2]
[341950174,1731319851696,-500.0,0.00027123,2]
[341950175,1731319851705,-627.03,0.00027123,2]
[341950176,1731319851714,-500.0,0.00027123,2]
[341950177,1731319851723,-398.98775593,0.00027123,2]
[341950178,1731319851732,-18090.39,0.00027123,2]
[341950179,1731319851742,-1781.49,0.00027123,2]
[341950180,1731319851759,-211.027096,0.00027123,2]
[341950181,1731319851769,-500.0,0.00027123,2]
[341950182,1731319851778,-1666.02,0.00027123,2]
[341950183,1731319851787,-678.61,0.00027123,2]
[341950184,1731319851797,-177.62509506,0.00027123,2]
[341950185,1731319851806,-500.0,0.00027123,2]
[341950186,1731319851815,-598.25742178,0.00027123,2]
[341950187,1731319851825,-519.65,0.00027123,2]
[341950188,1731319851834,-500.0,0.00027123,2]
[341950189,1731319851843,-500.0,0.00027123,2]
[341950190,1731319851853,-500.0,0.00027123,2]
[341950191,1731319851862,-510.32,0.00027123,2]
[341950193,1731319851871,-500.0,0.00027123,2]
[341950194,1731319851880,-919.43,0.00027123,2]
[341950196,1731319851892,-677.0,0.00027123,2]
[341950197,1731319851902,-500.0,0.00027123,2]
[341950199,1731319851912,-500.0,0.00027123,2]
[341950201,1731319851921,-545.62,0.00027123,2]
[341950203,1731319851931,-1790.59,0.00027123,2]
[341950206,1731319851941,-500.0,0.00027123,2]
[341950207,1731319851950,-500.0,0.00027123,2]
[341950209,1731319851959,-843.9,0.00027123,2]
[341950211,1731319851969,-629.72,0.00027123,2]
[341950214,1731319851978,-500.0,0.00027123,2]
[341950216,1731319851988,-854.84,0.00027123,2]
[341950218,1731319851998,-819.05,0.00027123,2]
[341950220,1731319852008,-500.0,0.00027123,2]
[341950222,1731319852018,-500.0,0.00027123,2]
[341950224,1731319852027,-2777.79,0.00027123,2]
[341950226,1731319852037,-2395.27,0.00027123,2]
[341950228,1731319852046,-500.0,0.00027123,2]
[341950230,1731319852055,-500.0,0.00027123,2]
[341950232,1731319852065,-500.0,0.00027123,2]
[341950234,1731319852074,-500.0,0.00027123,2]
[341950236,1731319852083,-150.0,0.00027223,2]
[341950238,1731319852092,-530.0,0.00027223,2]
[341950240,1731319852101,-1127.0,0.00027223,2]
[341950242,1731319852110,-2391.0,0.00027223,2]
[341950244,1731319852119,-505.73152967,0.00027342,2]
[341950246,1731319852128,-569.48619575,0.00027342,2]
[341950248,1731319852139,-1000.0,0.00027382,2]
[341950250,1731319852148,-500.0,0.00027397,2]
[341950252,1731319852157,-500.0,0.00027397,2]
[341950254,1731319852166,-950.68,0.00027397,2]
[341950256,1731319852176,-154.83664994,0.00027397,2]
[341950258,1731319852185,-500.0,0.00027397,2]
[341950260,1731319852194,-500.0,0.00027397,2]
[341950262,1731319852203,-515.99,0.00027397,2]
[341950264,1731319852212,-907.36,0.00027397,2]
[341950266,1731319852222,-500.0,0.00027397,2]
[341950268,1731319852235,-729.05,0.00027397,2]
[341950270,1731319852244,-500.0,0.00027397,2]
[341950272,1731319852254,-500.0,0.00027397,2]
[341950274,1731319852263,-500.0,0.00027397,2]
[341950276,1731319852272,-627.03,0.00027397,2]
[341950278,1731319852282,-500.0,0.00027397,2]
[341950280,1731319852291,-18090.39,0.00027397,2]
[341950282,1731319852303,-1781.49,0.00027397,2]
[341950284,1731319852316,-500.0,0.00027397,2]
[341950287,1731319852327,-1666.02,0.00027397,2]
[341950289,1731319852336,-678.61,0.00027397,2]
[341950291,1731319852345,-500.0,0.00027397,2]
[341950292,1731319852354,-519.65,0.00027397,2]
[341950295,1731319852364,-500.0,0.00027397,2]
[341950297,1731319852374,-500.0,0.00027397,2]
[341950299,1731319852383,-500.0,0.00027397,2]
[341950301,1731319852391,-510.32,0.00027397,2]
[341950302,1731319852402,-500.0,0.00027397,2]
[341950305,1731319852412,-919.43,0.00027397,2]
[341950307,1731319852422,-677.0,0.00027397,2]
[341950309,1731319852431,-500.0,0.00027397,2]
[341950311,1731319852440,-500.0,0.00027397,2]
[341950313,1731319852450,-545.62,0.00027397,2]
[341950315,1731319852459,-1790.59,0.00027397,2]
[341950317,1731319852469,-500.0,0.00027397,2]
[341950319,1731319852478,-500.0,0.00027397,2]
[341950321,1731319852487,-843.9,0.00027397,2]
[341950323,1731319852496,-629.72,0.00027397,2]
[341950325,1731319852505,-500.0,0.00027397,2]
[341950327,1731319852514,-854.84,0.00027397,2]
[341950329,1731319852523,-819.05,0.00027397,2]
[341950331,1731319852533,-500.0,0.00027397,2]
[341950333,1731319852543,-600.28711549,0.00027397,2]
[341950335,1731319852551,-2777.79,0.00027397,2]
[341950337,1731319852561,-2395.27,0.00027397,2]
[341950339,1731319852570,-500.0,0.00027397,2]
[341950341,1731319852580,-500.0,0.00027397,2]
[341950343,1731319852589,-500.0,0.00027397,2]
[341950345,1731319852598,-201.95597508,0.00027397,2]
[341950347,1731319852609,-4943.58,0.000274,30]
[341950349,1731319852619,-502.36421458,0.00027465,5]
[341950351,1731319852628,-500.0,0.00027465,5]
[341950354,1731319852641,-501.38203943,0.00027465,5]
[341950356,1731319852651,-500.0,0.00027465,5]
[341950357,1731319852660,-504.49722306,0.00027465,5]
[341950360,1731319852669,-300.0,0.000275,13]
[341950362,1731319852679,-508.51467113,0.0002751,2]
[341950364,1731319852688,-500.0,0.00027543,7]
[341950366,1731319852697,-396.30185023,0.00027671,2]
[341950368,1731319852707,-500.0,0.00027671,2]
[341950369,1731319852716,-950.68,0.00027671,2]
[341950372,1731319852725,-500.0,0.00027671,2]
[341950374,1731319852734,-500.0,0.00027671,2]
[341950375,1731319852743,-515.99,0.00027671,2]
[341950378,1731319852753,-907.36,0.00027671,2]
[341950380,1731319852763,-500.0,0.00027671,2]
[341950382,1731319852772,-729.05,0.00027671,2]
[341950384,1731319852782,-500.0,0.00027671,2]
[341950386,1731319852790,-500.0,0.00027671,2]
[341950388,1731319852799,-612.70400161,0.00027671,2]
[341950390,1731319852809,-627.03,0.00027671,2]
[341950392,1731319852818,-500.0,0.00027671,2]
[341950394,1731319852828,-18090.39,0.00027671,2]
[341950396,1731319852838,-1781.49,0.00027671,2]
[341950398,1731319852847,-500.0,0.00027671,2]
[341950400,1731319852856,-1666.02,0.00027671,2]
[341950402,1731319852865,-678.61,0.00027671,2]
[341950404,1731319852875,-500.0,0.00027671,2]
[341950406,1731319852886,-519.65,0.00027671,2]
[341950408,1731319852896,-500.0,0.00027671,2]
[341950410,1731319852905,-500.0,0.00027671,2]
[341950412,1731319852915,-500.0,0.00027671,2]
[341950414,1731319852924,-510.32,0.00027671,2]
[341950416,1731319852933,-500.0,0.00027671,2]
[341950418,1731319852942,-919.43,0.00027671,2]
[341950420,1731319852952,-677.0,0.00027671,2]
[341950422,1731319852962,-500.0,0.00027671,2]
[341950424,1731319852972,-475.28430552,0.00027671,2]
[341950426,1731319852982,-545.62,0.00027671,2]
[341950428,1731319852991,-1790.59,0.00027671,2]
[341950430,1731319853001,-500.0,0.00027671,2]
[341950432,1731319853010,-500.0,0.00027671,2]
[341950434,1731319853019,-843.9,0.00027671,2]
[341950436,1731319853028,-629.72,0.00027671,2]
[341950438,1731319853038,-500.0,0.00027671,2]
[341950440,1731319853048,-854.84,0.00027671,2]
[341950442,1731319853058,-819.05,0.00027671,2]
[341950444,1731319853068,-500.0,0.00027671,2]
[341950446,1731319853077,-2777.79,0.00027671,2]
[341950448,1731319853087,-2395.27,0.00027671,2]
[341950450,1731319853096,-500.0,0.00027671,2]
[341950452,1731319853106,-500.0,0.00027671,2]
[341950455,1731319853117,-500.0,0.00027671,2]
[341950456,1731319853126,-270.0,0.00027671,2]
[341950459,1731319853137,-1000.0,0.00027696,5]
[341950461,1731319853146,-781.75382864,0.00027696,5]
[341950463,1731319853158,-987.61808936,0.00027812,2]
[341950465,1731319853169,-27235.93890624,0.00027937,2]
[341950467,1731319853179,-449.96011033,0.00027945,2]
[341950469,1731319853191,-950.68,0.00027945,2]
[341950471,1731319853199,-500.0,0.00027945,2]
[341950473,1731319853208,-500.0,0.00027945,2]
[341950475,1731319853218,-515.99,0.00027945,2]
[341950477,1731319853228,-907.36,0.00027945,2]
[341950479,1731319853238,-377.89437142,0.00027945,2]
[341950481,1731319853247,-729.05,0.00027945,2]
[341950483,1731319853256,-500.0,0.00027945,2]
[341950485,1731319853267,-500.0,0.00027945,2]
[341950487,1731319853277,-627.03,0.00027945,2]
[341950489,1731319853287,-500.0,0.00027945,2]
[341950491,1731319853296,-18090.39,0.00027945,2]
[341950493,1731319853308,-1781.49,0.00027945,2]
[341950495,1731319853319,-500.0,0.00027945,2]
[341950497,1731319853328,-1666.02,0.00027945,2]
[341950499,1731319853338,-678.61,0.00027945,2]
[341950501,1731319853347,-500.0,0.00027945,2]
[341950503,1731319853357,-519.65,0.00027945,2]
[341950505,1731319853366,-500.0,0.00027945,2]
[341950507,1731319853375,-500.0,0.00027945,2]
[341950509,1731319853387,-500.0,0.00027945,2]
[341950511,1731319853396,-510.32,0.00027945,2]
[341950513,1731319853405,-500.0,0.00027945,2]
[341950515,1731319853415,-919.43,0.00027945,2]
[341950517,1731319853425,-677.0,0.00027945,2]
[341950519,1731319853434,-500.0,0.00027945,2]
[341950521,1731319853444,-545.62,0.00027945,2]
[341950523,1731319853464,-1790.59,0.00027945,2]
[341950525,1731319853479,-500.0,0.00027945,2]
[341950527,1731319853489,-500.0,0.00027945,2]
[341950529,1731319853498,-629.72,0.00027945,2]
[341950531,1731319853507,-843.9,0.00027945,2]
[341950533,1731319853517,-500.0,0.00027945,2]
[341950535,1731319853526,-854.84,0.00027945,2]
[341950537,1731319853536,-819.05,0.00027945,2]
[341950539,1731319853545,-500.0,0.00027945,2]
[341950541,1731319853553,-2777.79,0.00027945,2]
[341950543,1731319853562,-2395.27,0.00027945,2]
[341950545,1731319853571,-500.0,0.00027945,2]
[341950547,1731319853581,-500.0,0.00027945,2]
[341950549,1731319853591,-500.0,0.00027945,2]
[341950551,1731319853599,-475.24000937,0.00027963,2]
[341950553,1731319853609,-508.51467113,0.00028028,2]
[341950555,1731319853617,-1000.0,0.00028083,2]
[341950557,1731319853627,-1000.0,0.00028088,2]
[341950559,1731319853638,-159.374,0.000281,2]
[341950561,1731319853647,-1000.0,0.00028126,2]
[341950563,1731319853656,-1000.0,0.00028166,2]
[341950565,1731319853665,-1000.0,0.00028171,2]
[341950567,1731319853674,-1000.0,0.00028192,2]
[341950569,1731319853683,-1000.0,0.00028213,2]
[341950571,1731319853693,-950.68,0.00028219,2]
[341950573,1731319853702,-500.0,0.00028219,2]
[341950575,1731319853711,-500.0,0.00028219,2]
[341950577,1731319853721,-515.99,0.00028219,2]
[341950579,1731319853730,-907.36,0.00028219,2]
[341950581,1731319853739,-729.05,0.00028219,2]
[341950583,1731319853749,-500.0,0.00028219,2]
[341950585,1731319853759,-500.0,0.00028219,2]
[341950587,1731319853768,-627.03,0.00028219,2]
[341950589,1731319853778,-631.8310518,0.00028219,2]
[341950591,1731319853788,-18090.39,0.00028219,2]
[341950593,1731319853798,-1781.49,0.00028219,2]
[341950595,1731319853808,-500.0,0.00028219,2]
[341950597,1731319853817,-1666.02,0.00028219,2]
[341950599,1731319853827,-678.61,0.00028219,2]
[341950601,1731319853836,-500.0,0.00028219,2]
[341950603,1731319853845,-519.65,0.00028219,2]
[341950605,1731319853855,-500.0,0.00028219,2]
[341950607,1731319853864,-500.0,0.00028219,2]
[341950609,1731319853873,-500.0,0.00028219,2]
[341950611,1731319853883,-510.32,0.00028219,2]
[341950613,1731319853895,-500.0,0.00028219,2]
[341950615,1731319853904,-919.43,0.00028219,2]
[341950617,1731319853913,-677.0,0.00028219,2]
[341950619,1731319853923,-460.82450481,0.00028219,2]
[341950621,1731319853932,-545.62,0.00028219,2]
[341950623,1731319853941,-1790.59,0.00028219,2]
[341950625,1731319853950,-500.0,0.00028219,2]
[341950626,1731319853960,-500.0,0.00028219,2]
[341950628,1731319853970,-629.72,0.00028219,2]
[341950630,1731319853980,-843.9,0.00028219,2]
[341950632,1731319853990,-500.0,0.00028219,2]
[341950635,1731319854000,-854.84,0.00028219,2]
[341950636,1731319854010,-819.05,0.00028219,2]
[341950638,1731319854019,-567.66154074,0.00028219,2]
[341950640,1731319854029,-2777.79,0.00028219,2]
[341950642,1731319854038,-2395.27,0.00028219,2]
[341950644,1731319854048,-500.0,0.00028219,2]
[341950647,1731319854058,-440.24049882,0.00028219,2]
[341950648,1731319854067,-500.0,0.00028219,2]
[341950650,1731319854076,-1000.0,0.00028229,2]
[341950652,1731319854085,-222.7409843,0.00028235,2]
[341950654,1731319854094,-1000.0,0.0002824,2]
[341950656,1731319854103,-1000.0,0.00028267,2]
[341950658,1731319854113,-1000.0,0.00028322,2]
[341950660,1731319854122,-1000.0,0.00028361,2]
[341950662,1731319854132,-303.15095549,0.0002839,2]
[341950665,1731319854145,-179.250821,0.000284,2]
[341950666,1731319854155,-500.0,0.000284,27]
[341950668,1731319854165,-1004.541885,0.000284,2]
[341950670,1731319854175,-258.09931944,0.00028413,2]
[341950672,1731319854183,-163.657646,0.00028416,7]
[341950674,1731319854193,-163.657646,0.00028416,7]
[341950687,1731319854203,-151.0,0.00028416,7]
[341950689,1731319854325,-151.0,0.00028416,7]
[341950691,1731319854334,-4672.79139112,0.00028461,2]
[341950693,1731319854343,-1643.90495464,0.00028492,2]
[341950695,1731319854353,-1844.72289497,0.00028492,2]
[341950697,1731319854362,-950.68,0.00028493,2]
[341950699,1731319854372,-500.0,0.00028493,2]
[341950701,1731319854381,-500.0,0.00028493,2]
[341950703,1731319854394,-515.99,0.00028493,2]
[341950705,1731319854403,-907.36,0.00028493,2]
[341950707,1731319854412,-729.05,0.00028493,2]
[341950709,1731319854422,-500.0,0.00028493,2]
[341950711,1731319854432,-500.0,0.00028493,2]
[341950713,1731319854442,-500.0,0.00028493,7]
[341950715,1731319854451,-500.0,0.00028493,7]
[341950717,1731319854461,-627.03,0.00028493,2]
[341950719,1731319854470,-158.527162,0.00028493,2]
[341950721,1731319854481,-158.527162,0.00028493,2]
[341950723,1731319854491,-203.2811,0.00028493,2]
[341950725,1731319854500,-203.2811,0.00028493,2]
[341950727,1731319854509,-18090.39,0.00028493,2]
[341950729,1731319854519,-1781.49,0.00028493,2]
[341950731,1731319854529,-500.0,0.00028493,2]
[341950733,1731319854539,-1666.02,0.00028493,2]
[341950735,1731319854548,-678.61,0.00028493,2]
[341950737,1731319854557,-151.0,0.00028493,7]
[341950739,1731319854566,-500.0,0.00028493,2]
[341950741,1731319854575,-151.0,0.00028493,7]
[341950743,1731319854585,-519.65,0.00028493,2]
[341950745,1731319854594,-500.0,0.00028493,2]
[341950747,1731319854604,-500.0,0.00028493,2]
[341950749,1731319854613,-305.23169068,0.00028493,2]
[341950751,1731319854622,-500.0,0.00028493,2]
[341950753,1731319854632,-282.49709363,0.00028493,7]
[341950756,1731319854643,-510.32,0.00028493,2]
[341950757,1731319854653,-500.0,0.00028493,2]
[341950758,1731319854662,-919.43,0.00028493,2]
[341950759,1731319854672,-677.0,0.00028493,2]
[341950760,1731319854681,-545.62,0.00028493,2]
[341950761,1731319854691,-1790.59,0.00028493,2]
[341950762,1731319854700,-500.0,0.00028493,2]
[341950763,1731319854710,-500.0,0.00028493,2]
[341950764,1731319854720,-629.72,0.00028493,2]
[341950765,1731319854731,-843.9,0.00028493,2]
[341950766,1731319854741,-500.0,0.00028493,2]
[341950767,1731319854751,-854.84,0.00028493,2]
[341950768,1731319854761,-819.05,0.00028493,2]
[341950769,1731319854770,-2777.79,0.00028493,2]
[341950770,1731319854780,-2395.27,0.00028493,2]
[341950771,1731319854789,-500.0,0.00028493,2]
[341950772,1731319854799,-500.0,0.00028493,2]
[341950773,1731319854808,-508.51467113,0.00028545,2]
[341950774,1731319854818,-150.09,0.00028547,5]
[341950775,1731319854827,-150.09,0.00028547,2]
[341950776,1731319854837,-500.0,0.00028547,5]
[341950777,1731319854846,-297.24153813,0.00028547,5]
[341950778,1731319854856,-500.0,0.00028547,5]
[341950779,1731319854865,-150.39921,0.000286,2]
[341950780,1731319854875,-1102.2,0.000286,14]
[341950781,1731319854886,-154.33771621,0.000287,2]
[341950782,1731319854895,-300.0,0.000287,2]
[341950783,1731319854905,-1334.56,0.000287,14]
[341950784,1731319854914,-867.0465284,0.000287,2]
[341950785,1731319854924,-950.68,0.00028767,2]
[341950786,1731319854933,-237.36208467,0.00028767,2]
[341950787,1731319854942,-500.0,0.00028767,2]
[341950788,1731319854951,-515.99,0.00028767,2]
[341950789,1731319854961,-907.36,0.00028767,2]
[341950790,1731319854970,-151.0,0.00028767,7]
[341950791,1731319854980,-151.0,0.00028767,7]
[341950792,1731319854990,-729.05,0.00028767,2]
[341950793,1731319854999,-500.0,0.00028767,2]
[341950794,1731319855009,-500.0,0.00028767,2]
[341950795,1731319855018,-627.03,0.00028767,2]
[341950796,1731319855028,-18090.39,0.00028767,2]
[341950797,1731319855037,-1781.49,0.00028767,2]
[341950798,1731319855046,-500.0,0.00028767,2]
[341950799,1731319855055,-1666.02,0.00028767,2]
[341950800,1731319855064,-678.61,0.00028767,2]
[341950801,1731319855074,-500.0,0.00028767,2]
[341950802,1731319855083,-519.65,0.00028767,2]
[341950803,1731319855092,-500.0,0.00028767,2]
[341950804,1731319855102,-500.0,0.00028767,2]
[341950805,1731319855111,-500.0,0.00028767,2]
[341950806,1731319855121,-510.32,0.00028767,2]
[341950807,1731319855130,-500.0,0.00028767,2]
[341950808,1731319855142,-919.43,0.00028767,2]
[341950809,1731319855151,-677.0,0.00028767,2]
[341950810,1731319855160,-545.62,0.00028767,2]
[341950811,1731319855169,-1790.59,0.00028767,2]
[341950812,1731319855179,-500.0,0.00028767,2]
[341950813,1731319855188,-500.0,0.00028767,2]
[341950814,1731319855198,-629.72,0.00028767,2]
[341950815,1731319855207,-843.9,0.00028767,2]
[341950816,1731319855217,-500.0,0.00028767,2]
[341950817,1731319855227,-854.84,0.00028767,2]
[341950818,1731319855239,-819.05,0.00028767,2]
[341950819,1731319855249,-2777.79,0.00028767,2]
[341950820,1731319855258,-2395.27,0.00028767,2]
[341950821,1731319855267,-500.0,0.00028767,2]
[341950822,1731319855278,-500.0,0.00028767,2]
[341950823,1731319855288,-270.0,0.00028767,2]
[341950824,1731319855297,-2000.0,0.000288,10]
[341950825,1731319855309,-2292.41,0.000288,30]
[341950826,1731319855318,-4943.58,0.000288,30]
[341950827,1731319855328,-151.0,0.000288,7]
[341950828,1731319855337,-151.0,0.000288,7]
[341950829,1731319855346,-150.09,0.00028821,5]
[341950830,1731319855356,-500.0,0.00028821,5]
[341950831,1731319855365,-500.0,0.00028821,5]
[341950832,1731319855374,-1000.0,0.00028835,5]
[341950833,1731319855385,-1000.0,0.00028835,5]
[341950834,1731319855398,-16452.3,0.000289,14]
[341950835,1731319855408,-987.61808936,0.00028919,2]
[341950836,1731319855418,-500.0,0.00028982,2]
[341950837,1731319855427,-860.32334001,0.00029,2]
[341950838,1731319855437,-2000.0,0.00029,2]
[341950839,1731319855447,-1000.0,0.00029,29]
[341950840,1731319855456,-306.214342,0.00029,14]
[341950841,1731319855466,-159.402,0.00029037,120]
[341950842,1731319855475,-950.68,0.00029041,2]
[341950843,1731319855485,-500.0,0.00029041,2]
[341950844,1731319855494,-515.99,0.00029041,2]
[341950845,1731319855504,-907.36,0.00029041,2]
[341950846,1731319855514,-729.05,0.00029041,2]
[341950847,1731319855523,-500.0,0.00029041,2]
[341950848,1731319855533,-500.0,0.00029041,2]
[341950849,1731319855543,-627.03,0.00029041,2]
[341950850,1731319855552,-18090.39,0.00029041,2]
[341950851,1731319855562,-1781.49,0.00029041,2]
[341950852,1731319855572,-500.0,0.00029041,2]
[341950853,1731319855582,-1666.02,0.00029041,2]
[341950854,1731319855592,-678.61,0.00029041,2]
[341950855,1731319855601,-500.0,0.00029041,2]
[341950856,1731319855611,-519.65,0.00029041,2]
[341950857,1731319855620,-183.65562004,0.00029041,2]
[341950858,1731319855630,-500.0,0.00029041,2]
[341950859,1731319855643,-500.0,0.00029041,2]
[341950860,1731319855652,-510.32,0.00029041,2]
[341950861,1731319855662,-467.1471015,0.00029041,2]
[341950862,1731319855672,-919.43,0.00029041,2]
[341950863,1731319855681,-677.0,0.00029041,2]
[341950864,1731319855691,-545.62,0.00029041,2]
[341950865,1731319855701,-1790.59,0.00029041,2]
[341950866,1731319855710,-500.0,0.00029041,2]
[341950867,1731319855720,-500.0,0.00029041,2]
[341950868,1731319855730,-629.72,0.00029041,2]
[341950869,1731319855739,-843.9,0.00029041,2]
[341950870,1731319855749,-500.0,0.00029041,2]
[341950871,1731319855758,-854.84,0.00029041,2]
[341950872,1731319855767,-819.05,0.00029041,2]
[341950873,1731319855777,-2777.79,0.00029041,2]
[341950874,1731319855785,-2395.27,0.00029041,2]
[341950875,1731319855795,-500.0,0.00029041,2]
[341950876,1731319855804,-500.0,0.00029041,2]
[341950877,1731319855814,-1170.5749779,0.00029041,120]
[341950878,1731319855823,-508.51467113,0.00029063,2]
[341950879,1731319855832,-500.0,0.00029073,5]
[341950880,1731319855841,-500.0,0.00029073,5]
[341950881,1731319855851,-150.09,0.00029095,5]
[341950882,1731319855861,-602.65757693,0.00029095,5]
[341950883,1731319855870,-500.0,0.00029095,5]
[341950884,1731319855880,-48042.66452485,0.000291,2]
[341950885,1731319855891,-151.0,0.000291,7]
[341950886,1731319855901,-615.0,0.000291,2]
[341950887,1731319855910,-823.0,0.00029184,2]
[341950888,1731319855919,-4530.0,0.00029185,14]
[341950889,1731319855929,-500.0,0.00029187,7]
[341950890,1731319855939,-12270.86038631,0.00029205,2]
[341950891,1731319855948,-1500.0,0.00029288,5]
[341950892,1731319855958,-1500.0,0.00029288,5]
[341950893,1731319855968,-1500.0,0.00029288,5]
[341950894,1731319855977,-1500.0,0.00029288,5]
[341950895,1731319855987,-151.0,0.00029315,7]
[341950896,1731319855997,-950.68,0.00029315,2]
[341950897,1731319856006,-500.0,0.00029315,2]
[341950898,1731319856015,-515.99,0.00029315,2]
[341950899,1731319856025,-907.36,0.00029315,2]
[341950900,1731319856034,-729.05,0.00029315,2]
[341950901,1731319856044,-500.0,0.00029315,2]
[341950902,1731319856053,-500.0,0.00029315,2]
[341950903,1731319856062,-627.03,0.00029315,2]
[341950904,1731319856071,-18090.39,0.00029315,2]
[341950905,1731319856081,-1781.49,0.00029315,2]
[341950906,1731319856091,-644.41708869,0.00029315,2]
[341950907,1731319856101,-1666.02,0.00029315,2]
[341950908,1731319856110,-678.61,0.00029315,2]
[341950909,1731319856120,-151.0,0.00029315,7]
[341950910,1731319856130,-151.0,0.00029315,7]
[341950911,1731319856141,-500.0,0.00029315,2]
[341950912,1731319856150,-519.65,0.00029315,2]
[341950913,1731319856160,-233.0924906,0.00029315,2]
[341950914,1731319856169,-500.0,0.00029315,2]
[341950915,1731319856179,-510.32,0.00029315,2]
[341950916,1731319856189,-919.43,0.00029315,2]
[341950917,1731319856198,-677.0,0.00029315,2]
[341950918,1731319856207,-545.62,0.00029315,2]
[341950919,1731319856217,-1790.59,0.00029315,2]
[341950920,1731319856227,-163.657646,0.00029315,7]
[341950921,1731319856239,-500.0,0.00029315,2]
[341950922,1731319856248,-163.657646,0.00029315,7]
[341950923,1731319856257,-151.0,0.00029315,7]
[341950924,1731319856267,-530.46320402,0.00029315,2]
[341950925,1731319856276,-629.72,0.00029315,2]
[341950926,1731319856286,-843.9,0.00029315,2]
[341950927,1731319856295,-161.91821237,0.00029315,2]
[341950928,1731319856308,-151.0,0.00029315,7]
[341950929,1731319856318,-854.84,0.00029315,2]
[341950930,1731319856328,-819.05,0.00029315,2]
[341950931,1731319856338,-2777.79,0.00029315,2]
[341950932,1731319856347,-2395.27,0.00029315,2]
[341950933,1731319856357,-500.0,0.00029315,2]
[341950934,1731319856366,-580.87585881,0.00029315,2]
[341950935,1731319856376,-150.09,0.00029369,5]